Cogmind - Beta 13 @@@ ROGUE MODE // 2024.05.11 @ 14:53:51 Player: KADW Result: Destroyed by S-10 Pest with Light Assault Rifle Performance ------------- Evolutions (0) 0 Regions Visited (2) 400 Robots Destroyed (27) 135 Value Destroyed (388) 388 Prototype IDs (2) 40 Alien Tech Used (0) 0 Bonus (0) 0 TOTAL SCORE: 963 Bonus ------- None Cogmind --------- Core Integrity 0/250 Matter 297/300 Energy 95/100 System Corruption 0% Temperature Cool (15) Movement Rolling (80) Location -10/Mines Parts ------- > --- POWER (1) -------- (None) > --- PROPULSION (2) --- Wheel > --- UTILITY (2) ------ Small Storage Unit Seismic Detector > --- WEAPON (2) ------- Small Laser Light Assault Rifle > --- INVENTORY (8) ---- Light Nuclear Core Light Treads Wheel Structural Scanner Sensor Array Signal Interpreter Improved Terrain Scanner Beam Cannon Peak State ------------ > --- POWER ------------ Ion Engine > --- PROPULSION ------- Light Treads Compact Wheel > --- UTILITY ---------- Small Storage Unit Seismic Detector > --- WEAPON ----------- Medium Laser Light Assault Rifle > --- INVENTORY -------- Light Treads Wheel Improved Terrain Scanner Improved Terrain Scanner Seismic Detector Seismic Detector [Rating: 8] Favorites ----------- Power Ion Engine Engine Ion Engine Propulsion Light Treads Treads Light Treads Wheel Compact Wheel Utility Small Storage Unit Device Seismic Detector Storage Small Storage Unit Weapon Light Assault Rifle Energy Gun Medium Laser Energy Cannon Beam Cannon Ballistic Gun Light Assault Rifle Build | -11 -10 -10 ------- Run | Yrd Mat Min Slots Evolved . | . . . Power . | . . . Propulsion . | . . . Utility . | . . . Weapon . | . . . Parts Attached 17 | 7 4 6 Power 4 | 1 1 2 Engine 4 | 1 1 2 Core . | . . . Reactor . | . . . Propulsion 4 | 2 1 1 Treads 1 | 1 . . Leg . | . . . Wheel 3 | 1 1 1 Hover . | . . . Flight . | . . . Utility 3 | 2 . 1 Device 2 | 1 . 1 Storage 1 | 1 . . Processor . | . . . Hackware . | . . . Protection . | . . . Artifact . | . . . Weapon 6 | 2 2 2 Energy Gun 3 | 1 1 1 Energy Cannon 1 | . 1 . Ballistic Gun 2 | 1 . 1 Ballistic Cannon . | . . . Launcher . | . . . Special Weapon . | . . . Impact Weapon . | . . . Slashing Weapon . | . . . Piercing Weapon . | . . . Special Melee Weapon . | . . . Unidentified Prototypes . | . . . Parts Lost 6 | . 2 4 Power 2 | . 1 1 Propulsion 3 | . 1 2 Utility 1 | . . 1 Weapon . | . . . Highest Loss Streak 2 | . 2 2 To Critical Strikes . | . . . Average Slot Usage (%) 96 | . 98 94 Engine 13 | . 13 13 Treads 13 | . 14 13 Wheel 12 | . 13 11 Device 12 | . 14 11 Storage 14 | . 14 14 Energy Gun 12 | . 10 14 Energy Cannon 1 | . 3 . Ballistic Gun 14 | . 14 14 Naked Turns . | . . . Heaviest Build 15 | 14 15 14 Greatest Support 16 | 16 16 16 Greatest Overweight (x) 3 | . . 3 Average Overweight (x) . | . . . Largest Inventory Capacity 8 | 8 8 8 Average Capacity 7 | 7 8 8 Most Carried 8 | 7 8 8 Average Carried 7 | 6 7 8 Final Capacity 8 | 8 8 8 Final Carried 8 | 6 8 8 Class Distribution -------------------- 88% | Mutant 11% | Scavenger-Mutant Dominant Class ---------------- Mutant | -10/Materials Scavenger-Mutant | -10/Mines Resources | -11 -10 -10 ----------- Run | Yrd Mat Min Matter Collected 444 | 297 56 91 Remotely . | . . . Salvage Created 754 | 189 148 417 Parts 61 | 23 8 30 Haulers Intercepted 1 | . 1 . Recyclers Shooed 2 | 1 1 . Parts Field Recycled . | . . . Retrieved Matter . | . . . Parts Self-Destructed . | . . . Prevented . | . . . Kills | -11 -10 -10 ------- Run | Yrd Mat Min Combat Hostiles Destroyed 13 | . 4 9 Guns 13 | . 4 9 Classes Destroyed 5 | 1 3 1 Worker 3 | . . 3 Tunneler 10 | 9 . 1 Hauler 1 | . 1 . Swarmer 7 | . 2 5 Grunt 6 | . 2 4 Best Kill Streak 3 | 3 2 3 Combat Bots Only 3 | . 2 3 Max Kills in Single Turn 2 | 1 1 2 Gunslinging . | . . . Exploded . | . . . Melee . | . . . Uniques/NPCs Destroyed . | . . . Combat | -11 -10 -10 -------- Run | Yrd Mat Min Hostile Shots Fired 111 | . 58 53 Missed 21 | . 10 11 Damage Taken 908 | . 481 427 Core 254 | . 155 99 Absorbed by Shields . | . . . Core Remaining (%) 100 | 100 . . Volleys Fired 108 | 27 35 46 Largest 2 | 2 2 2 Hottest 80 | 70 80 70 Shots Fired 204 | 54 70 80 Gun 200 | 54 66 80 Cannon 4 | . 4 . Launcher . | . . . Special . | . . . Kinetic 96 | 27 35 34 Thermal 108 | 27 35 46 Explosive . | . . . Electromagnetic . | . . . Robot Hit Streak 11 | 5 10 11 Robot Miss Streak 4 | 3 4 2 Penetration Max . | . . . Secondary Targets 4 | . 2 2 Max Gunslinging Chain 1 | . 1 1 Shots Hit Robots 125 | 27 44 54 Core Hits 46 | 11 12 23 Critical Kills . | . . . Critical Parts Destroyed . | . . . Critical Strikes 2 | 1 1 . Burn 2 | 1 1 . Melee Attacks . | . . . Impact . | . . . Slashing . | . . . Piercing . | . . . Sneak Attacks . | . . . Combat Hostiles . | . . . Follow-up Attacks . | . . . Damage Inflicted 1324 | 302 466 556 Guns 1289 | 302 431 556 Cannons 35 | . 35 . Explosions . | . . . Melee . | . . . Ramming . | . . . Kinetic 473 | 80 204 189 Thermal 851 | 222 262 367 Explosive . | . . . Electromagnetic . | . . . Impact . | . . . Slashing . | . . . Piercing . | . . . Highest Corruption . | . . . Average Corruption . | . . . Corruption Purged . | . . . Corruption Blocked . | . . . Overload Shots . | . . . Overflow Damage . | . . . Projectiles . | . . . Explosions . | . . . Melee . | . . . Knockbacks . | . . . Impact . | . . . Kinetic . | . . . Secondary . | . . . Self-Inflicted Damage . | . . . Shots . | . . . Rammed . | . . . Targets Rammed . | . . . Kicked . | . . . Crushed . | . . . Highest Temperature 305 | 80 305 143 Average Temperature 60 | 32 89 50 Received Heat Transfer 327 | . 180 147 Siege Activations . | . . . Robots Corrupted . | . . . Combat Hostiles . | . . . Parts Fried . | . . . Impact Corruptions . | . . . Robots Melted . | . . . Combat Hostiles . | . . . Parts Melted 6 | 3 2 1 Heat Transferred 2462 | 740 814 908 Parts Sabotaged . | . . . Parts Stolen . | . . . Parts Stripped . | . . . Power Chain Reactions . | . . . Alert | -11 -10 -10 ------- Run | Yrd Mat Min Peak Influence 180 | 45 150 180 Initial . | . . . Average 24 | 4 39 83 Maximum Alert Level . | . . . Low Security (%) 100 | 100 100 100 Level 1 . | . . . Level 2 . | . . . Level 3 . | . . . Level 4 . | . . . Level 5 . | . . . High Security . | . . . Max Security . | . . . Squads Dispatched . | . . . Investigation . | . . . Extermination . | . . . Reinforcement . | . . . Assault . | . . . Garrison . | . . . Intercept . | . . . Searches Triggered . | . . . Construction Impeded . | . . . Haulers Reinforced . | . . . Active Scanning Responses . | . . . Cargo Convoy Interrupts . | . . . Stealth | -11 -10 -10 --------- Run | Yrd Mat Min Distress Signals 1 | . 1 . Communications Jammed . | . . . Distress Signals . | . . . Times Spotted 21 | . 9 12 Peak Tracking Total 6 | . 6 3 Tactical Retreats 3 | . 1 2 Traps | -11 -10 -10 ------- Run | Yrd Mat Min Traps Triggered . | . . . Indirectly . | . . . Trap Hack Attempts . | . . . Triggered . | . . . Disarmed . | . . . Reprogrammed . | . . . Reused . | . . . Traps Extracted . | . . . Installed . | . . . Triggered . | . . . Machines | -11 -10 -10 ---------- Run | Yrd Mat Min Machines Disabled . | . . . Max in Single Turn . | . . . Machines Repaired . | . . . Machines Dismantled . | . . . Machines Sabotaged . | . . . Overloaded Fab Kills . | . . . Hacking | -11 -10 -10 --------- Run | Yrd Mat Min Machines Accessed 3 | . 3 . Terminals 3 | . 3 . Fabricators . | . . . Repair Stations . | . . . Recycling Units . | . . . Scanalyzers . | . . . Garrison Access . | . . . Total Hacks 10 | . 10 . Successful 5 | . 5 . Failed 5 | . 5 . Catastrophic . | . . . Database Lockouts . | . . . Manual 5 | . 5 . Terminals 10 | . 10 . Fabricators . | . . . Repair Stations . | . . . Recycling Units . | . . . Scanalyzers . | . . . Garrison Access . | . . . Terminal Hacks 2 | . 2 . Prototype ID Bank 1 | . 1 . Terminal Index 1 | . 1 . Fabricator Hacks . | . . . Repair Station Hacks . | . . . Recycling Unit Hacks . | . . . Scanalyzer . | . . . Garrison Access Hacks . | . . . Unauthorized Hacks 3 | . 3 . Terminals 3 | . 3 . Botnet 3 | . 3 . Fabricators . | . . . Repair Stations . | . . . Recycling Units . | . . . Scanalyzers . | . . . Garrison Access . | . . . Data Cores Recovered . | . . . Used . | . . . Hacking Detections 3 | . 3 . Full Trace Events . | . . . Feedback Events . | . . . Feedback Blocked . | . . . Robot Schematics Acquired . | . . . Robots Built . | . . . Authchips . | . . . Time . | . . . Total Robot Build Rating . | . . . Part Schematics Acquired . | . . . Parts Built . | . . . Authchips . | . . . Time . | . . . Total Part Build Rating . | . . . Parts Repaired . | . . . Time . | . . . Parts Recycled . | . . . Recycled Matter . | . . . Retrieved Matter . | . . . Retrieved Components . | . . . Parts Scanalyzed . | . . . Part Schematics Acquired . | . . . Parts Damaged . | . . . Bothacking | -11 -10 -10 ------------ Run | Yrd Mat Min Used RIF Installer . | . . . Robots Hacked . | . . . Non-combat . | . . . Combat . | . . . Robot Hacks Applied . | . . . Relay Couplers Released . | . . . Fabnet Peak Effective % . | . . . Robots Rewired . | . . . Allies Hacked . | . . . Hacks Repelled . | . . . Allies | -11 -10 -10 -------- Run | Yrd Mat Min Total Allies . | . . . Largest Group . | . . . Highest-Rated Group . | . . . Highest-Rated Ally . | . . . Total Orders . | . . . Ally Attacks . | . . . Total Damage . | . . . Kills . | . . . Allies Corrupted . | . . . Allies Melted . | . . . Intel | -11 -10 -10 ------- Run | Yrd Mat Min Robot Analysis Total . | . . . Derelict Logs Recovered 1 | . . 1 Drone Launches . | . . . Drone Recoveries . | . . . Exploration | -11 -10 -10 ------------- Run | Yrd Mat Min Turns Passed 3364 | 2272 436 656 Spaces Moved 973 | 180 321 472 Core 45 | 1 . 44 Treads . | . . . Legs . | . . . Wheels 928 | 179 321 428 Hover . | . . . Flight . | . . . Fastest Speed 50 | 50 100 95 Average Speed 103 | 99 100 106 Slowest Speed 200 | 100 100 200 Overloaded Moves . | . . . Propulsion Burnouts . | . . . Robots Hopped . | . . . Cave-ins Triggered . | . . . Exploration Rate (%) 46 | 4 63 72 Regions Visited 2 Branch Regions 1 Pre-discovered Areas 2 | . . 2 Known Exits Taken . | . . . Unknown Exits Taken 2 | 1 1 . Scrap Searched 1 | . . 1 Spaces Dug . | . . . Terrain Destroyed . | . . . Melee . | . . . Projectile . | . . . AOE . | . . . Terrain Rammed . | . . . Walls Destroyed . | . . . Machines Disabled . | . . . Actions | -11 -10 -10 --------- Run | Yrd Mat Min Total 3147 | 2220 374 553 Wait 2023 | 1999 1 23 Move 971 | 179 320 472 Hop . | . . . Pick Up 17 | 7 9 1 Fast Attach 10 | 7 . 3 Attach 2 | . 2 . Detach . | . . . Swap 5 | . 2 3 Drop 11 | 1 5 5 Fire 108 | 27 35 46 Melee . | . . . Ram . | . . . Kick . | . . . Crush . | . . . Escape Stasis . | . . . Rewire . | . . . Trap . | . . . Miscellaneous . | . . . Route ------- -11/Scrapyard -10/Materials -10/Mines (discovered 2 exits: [*Mat x2]) History --------- Turn | Location | Event 17 | -11/Scrapyard | Discovered new exit (range 15) 2273 | -11/Scrapyard | Entered Materials 2293 | -10/Materials | Build established: Mutant 2612 | -10/Materials | Core integrity fell below 50% 2703 | -10/Materials | Discovered new exit (range 6) 2709 | -10/Materials | Entered Mines 2710 | -10/Mines | Learned location of Storage (-9) 2831 | -10/Mines | Discovered new exit (range 8) 2865 | -10/Mines | Discovered new exit (range 5) 2951 | -10/Mines | Core integrity fell below 20% 3296 | -10/Mines | Learned location of Mines (-9) 3365 | -10/Mines | Destroyed by S-10 Pest with Light Assault Rifle Last Messages --------------- 03077_ Dropped Seismic Detector. 03077_ Acquired Wheel. 03148_ K-01 Serf collects debris. 03184_ K-01 Serf destroyed. 03187_ Acquired 2 matter. 03189_ K-01 Serf collects debris. 03191_ Sml. Matter Pod melted. 03191_ K-01 Serf destroyed. 03192_ Extracted 1 matter. 03197_ Dropped Ion Engine. 03197_ Acquired Lgt. Ion Engine. 03200_ Acquired 10 matter. 03296_ Acquired derelict log, extracted data. World map updated: -9/Mines. 03316_ K-01 Serf collects debris. 03347_ S-10 Pest destroyed. 03353_ Switching to secondary target: S-10 Pest. 03355_ Lgt. Treads destroyed. 03358_ Lgt. Ion Engine destroyed. 03361_ Destroyed Flight Unit. Map ----- +----------------------------------------------------+ | | | | | | | | | | | | | | | | | | | | | ???????????????????????????????????????? | | ?####?####??????????####???????????????? | | ## ### ##????????## #??????????????? | | # #????????# #?????????????? | | %= ##??????## """ #?????????????? | | # ##?????# """ #?????????????? | | # #?????# """ ##????????????? | | ## #?????## ##???????????? | | ?# #??????### ##??????????? | | ?# ##????????## #######????? | | ?## ##??????????### #????? | | ??## #???????#####?## ## ## #????? | | ???## #???##### ##?#### ## #????? | | ????## #??## ##???# ## #????? | | ##???# #### *##### ## #????? | | ##??## ## s% @%[ ##???? | | #???## ###### #???? | | ##???# ###???## ##??? | | ##??## k ##?????# ##?? | | ##??## ##?????# #?? | | # ##??## ##????# #?? | | ## ##??## ##???# #?? | | ?# #???# #???# #?? | | ?# #???# ##### #?? | | ?## ##???## #?? | | ??# ##?????# ?? | | ??# #??????# ###### #? | | ??# #??????# ##????## #? | | ??# #??????## ##??????## ##? | | ??# #???????####????????## ###?? | | ??# #????????????????????# ##???? | | ?## ####????????????????? ?????? | | ?# #??????????????????? ?????? | | ?# """ #?????????????????????? #?????? | | ?# """ #??????????????????????????????? | | ?# """ #??????????????????????????????? | | ?# #??????????????????????????????? | | ?# #??????????????????????????????? | | ?########??????????????????????????????? | | ???????????????????????????????????????? | +----------------------------------------------------+ Best States ------------- Heat Dissipation 25 Energy Generation 10 Energy Capacity 250 Matter Stores 300 Matter Capacity 300 Sight Range 16 Terrain Scan Density 10 Evasion (%) 41 Recoil Reduction 1 Item Schematics ----------------- None Robot Schematics ------------------ None Fabricated ------------ Nothing Alien Tech Used ----------------- None Achievements -------------- None Challenges ------------ None Game ------ Seed VortexShieldMatter Manual? 0 Play Time 00:19:13 Cumulative 89.9 hours Start 2024.05.11 @ 14:31:03 End 2024.05.11 @ 14:53:51 Sessions 1 Manual Loads 0 Difficulty Rogue Special Mode None Game No. 48 Rogue 48 Adventurer 0 Explorer 0 Win Type - Total 3 Types 3/0/0/0/0/0/0/0/0 Lore% 49 Gallery% 57 Achievement% 43 Wizard Run 0 Options --------- Layout 0 ASCII 1 Keyboard 0 Movement Mouse Keybinds 0 Fullscreen 1 Font 20/X11 Map View 66x50 Zoom Use 0% Tactical HUD 1 Map Filters NONE Filters NONE Steam 1 RUN: bba12347-3e0a-4ee0-bdcb-db872f41385e